[Event "WJCC U20 Girls 2019"]
[Site "New Delhi"]
[Date "2019.10.24"]
[Round "10.10"]
[White "Avetisyan, Mariam"]
[Black "Zhu, Jiner"]
[Result "1/2-1/2"]
[ECO "A05"]
[WhiteElo "2110"]
[BlackElo "2507"]
[Annotator "ChessBase"]
[PlyCount "124"]
[EventDate "2019.10.15"]
[EventType "swiss"]
[EventCountry "IND"]
[SourceTitle "playchess.com"]
[Source "ChessBase"]
[SourceQuality "1"]
[TimeControl "40/5400+30:1800+30"]

1. Nf3 {[%emt 0:00:00]} Nf6 {[%emt 0:00:00]} 2. d4 {[%emt 0:00:00]} e6 {[%emt 0:00:00]} 3. g3 {[%emt 0:00:00]} d5 {[%emt 0:00:00]} 4. Bg2 {[%emt 0:00:00]} Be7 {[%emt 0:00:00]} 5. O-O {[%emt 0:00:13]} O-O {[%emt 0:00:45]} 6. c4 {[%emt 0:00:06]} dxc4 {[%emt 0:00:05]} 7. Qc2 {[%emt 0:00:24]} b5 {[%emt 0:01:14]} 8. a4 {[%emt 0:00:29]} b4 {[%emt 0:00:06]} 9. Nbd2 {[%emt 0:10:37]} Bb7 {[%emt 0:00:06]} 10. Nxc4 {[%emt 0:01:20]} Be4 {[%emt 0:00:06]} 11. Qd1 {[%emt 0:08:53]} Nbd7 {[%emt 0:00:53]} 12. Bd2 {[%emt 0:15:02]} Qc8 {[%emt 0:07:13]} 13. Rc1 {[%emt 0:03:38]} Qb7 {[%emt 0:00:30]} 14. Nh4 {[%emt 0:16:02]} Bxg2 {[%emt 0:01:24]} 15. Nxg2 {[%emt 0:02:34]} c5 {[%emt 0:00:06]} 16. Bf4 {[%emt 0:04:11]} cxd4 {[%emt 0:02:51]} 17. Qxd4 {[%emt 0:00:35]} Nc5 {[%emt 0:00:09]} 18. Qd1 {[%emt 0:15:55]} Rfd8 {[%emt 0:03:35]} 19. Qc2 {[%emt 0:04:12]} b3 {[%emt 0:01:03]} 20. Qb1 {[%emt 0:00:05]} Nxa4 {[%emt 0:00:18]} 21. Na5 {[%emt 0:01:18]} Qb5 {[%emt 0:00:07]} 22. Nc6 {[%emt 0:00:17]} Rd7 {[%emt 0:00:05]} 23. Nxe7+ {[%emt 0:01:06]} Rxe7 {[%emt 0:00:04]} 24. Rfe1 {[%emt 0:02:10]} Nd5 {[%emt 0:01:28]} 25. Be5 {[%emt 0:02:45]} f6 {[%emt 0:00:36]} 26. Bd6 {[%emt 0:00:32]} Rd7 {[%emt 0:00:20]} 27. Ba3 {[%emt 0:00:26]} Rad8 {[%emt 0:02:23]} 28. Qe4 {[%emt 0:00:21]} e5 {[%emt 0:00:06]} 29. Nh4 {[%emt 0:02:23]} g6 {[%emt 0:05:13]} 30. Qf3 {[%emt 0:02:04]} Kg7 {[%emt 0:00:36]} 31. Qg4 {[%emt 0:00:29]} Kf7 {[%emt 0:01:49]} 32. Nf3 {[%emt 0:00:10]} Ndb6 {[%emt 0:01:10]} 33. Qe4 {[%emt 0:03:03]} a5 {[%emt 0:02:11]} 34. h4 {[%emt 0:03:19]} Qd5 {[%emt 0:00:15]} 35. Qe3 {[%emt 0:00:26]} Kg7 {[%emt 0:01:01]} 36. Nh2 {[%emt 0:01:13]} h5 {[%emt 0:01:14]} 37. Nf1 {[%emt 0:01:00]} Qe6 {[%emt 0:02:44]} 38. Qf3 {[%emt 0:00:48]} e4 {[%emt 0:00:10]} 39. Qe3 {[%emt 0:00:10]} Kh7 {[%emt 0:03:16]} 40. Kh2 {[%emt 0:00:30]} f5 {[%emt 0:00:14]} 41. Kg1 {[%emt 0:02:02]} Rf7 {[%emt 0:05:36]} 42. Red1 {[%emt 0:04:07]} Rxd1 {[%emt 0:00:43]} 43. Rxd1 {[%emt 0:00:03]} f4 {[%emt 0:05:23]} 44. gxf4 {[%emt 0:01:32]} Qg4+ {[%emt 0:03:54]} 45. Ng3 {[%emt 0:02:47]} Qxf4 {[%emt 0:00:06]} 46. Nxe4 {[%emt 0:12:00]} Qxe3 {[%emt 0:00:11]} 47. fxe3 {[%emt 0:00:03]} Kg7 {[%emt 0:00:06]} 48. Rd3 {[%emt 0:02:36]} Rc7 {[%emt 0:00:06]} 49. Kf2 {[%emt 0:02:23]} Nc4 {[%emt 0:04:38]} 50. Rxb3 {[%emt 0:00:06]} Nxa3 {[%emt 0:00:11]} 51. bxa3 {[%emt 0:04:24]} Rc4 {[%emt 0:00:20]} 52. Rb7+ {[%emt 0:01:09]} Kh6 {[%emt 0:00:05]} 53. Nf6 {[%emt 0:00:45]} Rxh4 {[%emt 0:00:19]} 54. Ng8+ {[%emt 0:00:03]} Kg5 {[%emt 0:00:05]} 55. Rb5+ {[%emt 0:00:09]} Kg4 {[%emt 0:00:05]} 56. Rxa5 {[%emt 0:02:02]} Nc3 {[%emt 0:19:41]} 57. Nf6+ {[%emt 0:00:25]} Kh3 {[%emt 0:00:06]} 58. Rg5 {[%emt 0:01:23]} Rc4 {[%emt 0:00:07]} 59. Rxg6 {[%emt 0:00:51]} Rc6 {[%emt 0:00:11]} 60. Nxh5 {[%emt 0:01:04]} Ne4+ {[%emt 0:00:06]} 61. Kf3 {[%emt 0:00:22]} Nd2+ {[%emt 0:00:07]} 62. Kf2 {[%emt 0:00:43]} Ne4+ {[%emt 0:00:04]} 1/2-1/2

[Event "WJCC U20 Girls 2019"]
[Site "New Delhi"]
[Date "2019.10.24"]
[Round "10.11"]
[White "Arpita, Mukherjee"]
[Black "Diakonova, Ekaterina"]
[Result "1/2-1/2"]
[ECO "B12"]
[WhiteElo "2271"]
[BlackElo "2231"]
[Annotator "NA"]
[PlyCount "129"]
[EventDate "2019.10.15"]
[EventType "swiss"]
[EventCountry "IND"]
[SourceTitle "playchess.com"]
[Source "ChessBase"]
[SourceQuality "1"]
[TimeControl "40/5400+30:1800+30"]

1. e4 {[%emt 0:00:11]} c6 {[%emt 0:00:00]} 2. d4 {[%emt 0:00:10]} d5 {[%emt 0:00:00]} 3. e5 {[%emt 0:00:14]} Bf5 {[%emt 0:00:00]} 4. Nf3 {[%emt 0:00:12]} e6 {[%emt 0:00:00]} 5. Be2 {[%emt 0:00:16]} Bb4+ {[%emt 0:00:00]} 6. Nbd2 {[%emt 0:01:40] B12: Caro-Kann: Advance Variation} Nd7 {[%emt 0:00:27]} 7. O-O {[%emt 0:00:18]} Ba5 {[%emt 0:00:09]} 8. Nb3 {[%emt 0:01:01]} Bc7 {[%emt 0:00:07]} 9. Ne1 {[%emt 0:03:37]} h6 $146 {[%emt 0:01:35]} ({Predecessor:} 9... f6 10. Bh5+ g6 11. Be2 g5 12. Bd3 Bg6 13. exf6 Qxf6 {1-0 (25) Sjugirov,S (2627)-Carlsen,M (2826) Khanty-Mansiysk 2010}) 10. f4 {[%emt 0:00:59]} Ne7 {[%emt 0:00:53]} 11. a4 {[%emt 0:01:34]} a5 {[%emt 0:00:41]} 12. Bd3 {[%emt 0:01:36]} Bxd3 {[%emt 0:04:27]} 13. Qxd3 {[%emt 0:01:08]} O-O {[%emt 0:03:03]} 14. c3 {[%emt 0:03:39]} b6 {[%emt 0:01:28]} 15. Nc2 {[%emt 0:04:37]} c5 {[%emt 0:01:34]} 16. Qh3 {[%emt 0:01:08]} Rc8 {[%emt 0:19:04]} 17. Ne3 {[%emt 0:07:48]} f5 {[%emt 0:07:34]} 18. exf6 {[%emt 0:12:04]} Rxf6 {[%emt 0:00:07]} 19. Ng4 {[%emt 0:00:43]} Rf7 {[%emt 0:06:38]} 20. Re1 {[%emt 0:06:08]} Nf8 $11 {[%emt 0:10:55]} 21. dxc5 {[%emt 0:13:21]} bxc5 {[%emt 0:00:29]} 22. Be3 {[%emt 0:01:07]} c4 {[%emt 0:07:48]} 23. Nd4 {[%emt 0:01:33]} Bxf4 {[%emt 0:01:28]} 24. Bxf4 {[%emt 0:04:51]} Rxf4 {[%emt 0:00:02]} 25. Qg3 {[%emt 0:02:43]} Neg6 {[%emt 0:02:38]} 26. Nxe6 {[%emt 0:03:34]} Qb6+ {[%emt 0:02:32]} 27. Nd4 {[%emt 0:03:12]} Rd8 {[%emt 0:06:05]} 28. Re2 {[%emt 0:02:58]} h5 {[%emt 0:06:41]} 29. Ne5 {[%emt 0:02:10]} h4 {[%emt 0:00:35]} 30. Qg5 {[%emt 0:00:56]} Rf6 {[%emt 0:00:25]} 31. Ng4 {[%emt 0:01:33]} Rfd6 {[%emt 0:00:58]} 32. Rae1 {[%emt 0:00:43]} Nh7 {[%emt 0:01:15]} 33. Qd2 {[%emt 0:05:05]} Nf6 {[%emt 0:01:33]} 34. Nxf6+ {[%emt 0:00:30]} Rxf6 {[%emt 0:00:02]} 35. Re6 {[%emt 0:00:25]} Rd6 {[%emt 0:01:55]} 36. Re8+ {[%emt 0:01:17]} Rf8 {[%emt 0:04:30]} 37. h3 {[%emt 0:02:30]} Rdf6 {[%emt 0:01:34]} 38. Rxf8+ {[%emt 0:01:43]} Nxf8 {[%emt 0:00:19]} 39. Kh1 {[%emt 0:00:39]} Ng6 {[%emt 0:07:29]} 40. Re8+ {[%emt 0:07:06]} Kf7 {[%emt 0:00:06]} 41. Qe2 {[%emt 0:31:15]} Nf4 {[%emt 0:11:46]} 42. Qe7+ {[%emt 0:00:00]} Kg6 {[%emt 0:00:03]} 43. Rg8 {[%emt 0:00:00]} Rf7 {[%emt 0:06:56]} 44. Qxh4 {[%emt 0:00:00]} Qxb2 {[%emt 0:02:12]} 45. Qg4+ {[%emt 0:00:00]} Kh7 {[%emt 0:00:02]} 46. Ra8 {[%emt 0:00:00]} g6 {[%emt 0:03:08]} 47. Ne6 {[%emt 0:00:00]} Qf2 {[%emt 0:04:12]} 48. Nxf4 {[%emt 0:01:47]} Qxf4 {[%emt 0:03:15]} 49. Qxf4 {[%emt 0:00:17]} Rxf4 {[%emt 0:00:02]} 50. Rxa5 {[%emt 0:00:09]} Rf1+ {[%emt 0:00:29]} 51. Kh2 {[%emt 0:00:05]} Rc1 {[%emt 0:00:10]} 52. Rxd5 {[%emt 0:00:06]} Rxc3 {[%emt 0:00:04]} 53. Rc5 {[%emt 0:00:16]} Rc2 {[%emt 0:00:26]} 54. a5 {[%emt 0:00:29]} Ra2 {[%emt 0:00:13]} 55. Rxc4 {[%emt 0:00:06]} Rxa5 {[%emt 0:00:03]} 56. Kg3 {[%emt 0:00:11]} Ra2 {[%emt 0:00:49]} 57. Kf3 {[%emt 0:00:21]} Kh6 {[%emt 0:00:19]} 58. Rc5 {[%emt 0:00:17]} Ra3+ {[%emt 0:00:46]} 59. Kg4 {[%emt 0:00:09]} Ra4+ {[%emt 0:00:02]} 60. Kg3 {[%emt 0:00:06]} Ra3+ {[%emt 0:00:03]} 61. Kf4 {[%emt 0:00:35]} Ra4+ {[%emt 0:00:13]} 62. Kf3 {[%emt 0:00:06]} Ra3+ {[%emt 0:00:10]} 63. Kf4 {[%emt 0:00:03]} Ra4+ {[%emt 0:00:05]} 64. Kf3 {[%emt 0:00:03]} Ra3+ {[%emt 0:00:07]} 65. Ke4 1/2-1/2

[Event "WJCC U20 Girls 2019"]
[Site "New Delhi"]
[Date "2019.10.24"]
[Round "10.12"]
[White "Cervantes Landeiro, Thalia"]
[Black "Protopopova, Anastasiya"]
[Result "1/2-1/2"]
[ECO "D12"]
[WhiteElo "2176"]
[BlackElo "2263"]
[Annotator "NA"]
[PlyCount "132"]
[EventDate "2019.10.15"]
[EventType "swiss"]
[EventCountry "IND"]
[SourceTitle "playchess.com"]
[Source "ChessBase"]
[SourceQuality "1"]
[TimeControl "40/5400+30:1800+30"]

1. d4 {[%emt 0:00:00]} d5 {[%emt 0:00:00]} 2. c4 {[%emt 0:00:00]} c6 {[%emt 0:00:00]} 3. Nf3 {[%emt 0:00:40]} Nf6 {[%emt 0:00:02]} 4. e3 {[%emt 0:00:11]} Bf5 {[%emt 0:00:05]} 5. Nc3 {[%emt 0:00:08]} e6 {[%emt 0:00:03]} 6. Nh4 {[%emt 0:00:20]} Be4 {[%emt 0:00:04]} 7. f3 {[%emt 0:00:15]} Bg6 {[%emt 0:00:09]} 8. Qb3 {[%emt 0:00:17]} Qc7 {[%emt 0:00:07]} 9. Bd2 {[%emt 0:00:52]} Be7 {[%emt 0:00:12]} 10. O-O-O {[%emt 0:06:23]} dxc4 {[%emt 0:00:35]} 11. Bxc4 {[%emt 0:00:20]} b5 {[%emt 0:02:12]} 12. Be2 {[%emt 0:00:19]} Nbd7 {[%emt 0:12:12]} 13. Nxg6 {[%emt 0:03:58]} hxg6 {[%emt 0:00:06]} 14. g3 {[%emt 0:24:30]} e5 {[%emt 0:08:03]} 15. Kb1 {[%emt 0:02:38]} a6 {[%emt 0:02:09]} 16. dxe5 {[%emt 0:06:53]} Nc5 {[%emt 0:07:44]} 17. Qc2 {[%emt 0:00:42]} Qxe5 {[%emt 0:02:06]} 18. f4 {[%emt 0:04:23]} Qe6 {[%emt 0:03:09]} 19. Bf3 {[%emt 0:02:43]} O-O {[%emt 0:16:32]} 20. Ne2 {[%emt 0:02:30]} Qf5 {[%emt 0:17:40]} 21. Qxf5 {[%emt 0:05:59]} gxf5 {[%emt 0:00:06]} 22. Bxc6 {[%emt 0:08:05]} Rac8 {[%emt 0:00:19]} 23. Nd4 {[%emt 0:00:32]} g6 {[%emt 0:09:48]} 24. Bb4 {[%emt 0:04:04]} Rc7 {[%emt 0:00:33]} 25. Ba5 {[%emt 0:07:19]} Rcc8 {[%emt 0:00:06]} 26. Rc1 {[%emt 0:03:47]} Nfe4 {[%emt 0:04:37]} 27. Bb4 {[%emt 0:04:01]} Bd6 {[%emt 0:06:44]} 28. Rc2 {[%emt 0:03:29]} Nd3 {[%emt 0:02:19]} 29. Bxd6 {[%emt 0:02:06]} Nxd6 {[%emt 0:00:03]} 30. a3 {[%emt 0:04:11]} Ne4 {[%emt 0:02:20]} 31. Rd1 {[%emt 0:01:34]} Ndf2 {[%emt 0:00:34]} 32. Rdc1 {[%emt 0:00:40]} Nd3 {[%emt 0:01:12]} 33. Rf1 {[%emt 0:00:39]} b4 {[%emt 0:01:49]} 34. Bxe4 {[%emt 0:00:52]} fxe4 {[%emt 0:00:07]} 35. Nc6 {[%emt 0:00:21]} Kg7 {[%emt 0:00:34]} 36. Nxb4 {[%emt 0:00:45]} Nxb4 {[%emt 0:00:26]} 37. axb4 {[%emt 0:00:23]} Rxc2 {[%emt 0:02:44]} 38. Kxc2 {[%emt 0:00:01]} Rc8+ {[%emt 0:00:11]} 39. Kd2 {[%emt 0:01:57]} Rc4 {[%emt 0:00:14]} 40. Ra1 {[%emt 0:00:30]} Rxb4 {[%emt 0:00:14]} 41. Kc3 {[%emt 0:30:32]} Rb6 {[%emt 0:30:42]} 42. Ra4 {[%emt 0:00:00]} f5 {[%emt 0:00:00]} 43. g4 {[%emt 0:00:00]} Rd6 {[%emt 0:00:00]} 44. gxf5 {[%emt 0:00:00]} gxf5 {[%emt 0:00:00]} 45. Ra3 {[%emt 0:00:00]} Kg6 {[%emt 0:00:00]} 46. Kc4 {[%emt 0:00:00]} Kh5 {[%emt 0:00:00]} 47. Kc5 {[%emt 0:00:00]} Rh6 {[%emt 0:00:00]} 48. Kd4 {[%emt 0:00:00]} Rb6 {[%emt 0:00:00]} 49. Ke5 {[%emt 0:02:50]} Rb5+ {[%emt 0:00:00]} 50. Kf6 {[%emt 0:00:47]} a5 {[%emt 0:00:00]} 51. Ra1 {[%emt 0:01:08]} Kg4 {[%emt 0:00:00]} 52. Rg1+ {[%emt 0:00:38]} Kf3 {[%emt 0:00:00]} 53. Rg3+ {[%emt 0:00:24]} Kf2 {[%emt 0:00:00]} 54. Ke6 {[%emt 0:00:48]} a4 {[%emt 0:00:00]} 55. Kf6 {[%emt 0:00:29]} Rxb2 {[%emt 0:01:10]} 56. Kxf5 {[%emt 0:00:32]} a3 {[%emt 0:00:21]} 57. Rg8 {[%emt 0:00:19]} Rb5+ {[%emt 0:02:44]} 58. Kxe4 {[%emt 0:00:15]} Ra5 {[%emt 0:00:33]} 59. Rc8 {[%emt 0:00:29]} Ra4+ {[%emt 0:00:08]} 60. Ke5 {[%emt 0:00:43]} a2 {[%emt 0:00:15]} 61. Rc1 {[%emt 0:00:10]} a1=Q+ 62. Rxa1 {[%emt 0:00:03]} Rxa1 {[%emt 0:00:54]} 63. f5 {[%emt 0:00:28]} Kxe3 {[%emt 0:01:54]} 64. f6 {[%emt 0:00:21]} Ra5+ {[%emt 0:01:42]} 65. Ke6 {[%emt 0:00:18]} Ra6+ {[%emt 0:00:14]} 66. Ke7 {[%emt 0:00:17]} Ra7+ {[%emt 0:00:16]} 1/2-1/2

[Event "WJCC U20 Girls 2019"]
[Site "New Delhi"]
[Date "2019.10.24"]
[Round "10.13"]
[White "Narva, Mai"]
[Black "Pandey Srishti"]
[Result "1/2-1/2"]
[ECO "C06"]
[WhiteElo "2378"]
[BlackElo "1963"]
[Annotator "NA"]
[PlyCount "134"]
[EventDate "2019.10.15"]
[EventType "swiss"]
[EventCountry "IND"]
[SourceTitle "playchess.com"]
[Source "ChessBase"]
[SourceQuality "1"]
[TimeControl "40/5400+30:1800+30"]

1. e4 {[%emt 0:00:00]} e6 {[%emt 0:00:00]} 2. d4 {[%emt 0:00:00]} d5 {[%emt 0:00:00]} 3. Nd2 {[%emt 0:00:23]} Nf6 {[%emt 0:00:00]} 4. e5 {[%emt 0:00:12]} Nfd7 {[%emt 0:00:00]} 5. Bd3 {[%emt 0:00:19]} c5 {[%emt 0:00:00]} 6. c3 {[%emt 0:00:07]} Nc6 {[%emt 0:00:00]} 7. Ne2 {[%emt 0:00:16]} cxd4 {[%emt 0:00:23]} 8. cxd4 {[%emt 0:00:10]} f6 {[%emt 0:00:09]} 9. exf6 {[%emt 0:00:19]} Nxf6 {[%emt 0:00:03]} 10. O-O {[%emt 0:00:20]} Bd6 {[%emt 0:00:03]} 11. Nf3 {[%emt 0:00:18]} O-O {[%emt 0:00:12]} 12. Bf4 {[%emt 0:00:40]} Ne4 {[%emt 0:03:09]} 13. Qc1 {[%emt 0:15:10]} Qf6 $14 {[%emt 0:19:12]} 14. Bxd6 {[%emt 0:11:33]} Nxd6 {[%emt 0:00:17]} 15. Qe3 {[%emt 0:00:26]} Ne7 {[%emt 0:15:29]} 16. Rac1 {[%emt 0:05:49]} Nef5 {[%emt 0:13:28]} 17. Qe5 {[%emt 0:05:34]} Bd7 {[%emt 0:04:23]} 18. Nf4 {[%emt 0:10:31]} Ne8 {[%emt 0:03:42]} 19. g3 {[%emt 0:04:37]} Rd8 {[%emt 0:07:48]} 20. Rfe1 {[%emt 0:08:16]} g6 {[%emt 0:05:48]} 21. Bxf5 {[%emt 0:09:22]} Qxf5 {[%emt 0:00:18]} 22. Ng5 {[%emt 0:02:17]} Ng7 {[%emt 0:02:58]} 23. Qxf5 {[%emt 0:01:23]} Rxf5 {[%emt 0:01:05]} 24. Ngxe6 {[%emt 0:00:33]} Bxe6 {[%emt 0:00:23]} 25. Nxe6 {[%emt 0:00:09]} Nxe6 {[%emt 0:00:03]} 26. Rxe6 {[%emt 0:00:09]} Kf7 {[%emt 0:00:02]} 27. Re2 {[%emt 0:02:56]} Rd7 {[%emt 0:00:07]} 28. h4 {[%emt 0:02:15]} Rf3 {[%emt 0:00:34]} 29. Rd2 {[%emt 0:03:05]} Ke6 {[%emt 0:00:27]} 30. Rc8 {[%emt 0:01:10]} Kd6 {[%emt 0:03:28]} 31. Kg2 {[%emt 0:00:30]} Rff7 {[%emt 0:00:23]} 32. f3 {[%emt 0:05:04]} Rc7 {[%emt 0:03:06]} 33. Rd8+ {[%emt 0:01:31]} Rfd7 {[%emt 0:00:28]} 34. Rxd7+ {[%emt 0:01:19]} Kxd7 {[%emt 0:00:01]} 35. Kf2 {[%emt 0:02:14]} Rc1 {[%emt 0:00:41]} 36. g4 {[%emt 0:02:15]} Kd6 {[%emt 0:01:37]} 37. Kg3 {[%emt 0:02:06]} h6 {[%emt 0:00:15]} 38. Kg2 {[%emt 0:04:21]} b5 {[%emt 0:01:20]} 39. f4 {[%emt 0:01:07]} Ke6 {[%emt 0:00:19]} 40. b3 {[%emt 0:00:36]} Kf6 {[%emt 0:00:39]} 41. f5 {[%emt 0:11:55]} h5 {[%emt 0:06:15]} 42. fxg6 {[%emt 0:01:38]} Kxg6 {[%emt 0:00:05]} 43. Re2 {[%emt 0:11:50]} hxg4 {[%emt 0:22:48]} 44. Re5 {[%emt 0:02:03]} Rc2+ {[%emt 0:00:27]} 45. Kg3 {[%emt 0:00:06]} Rxa2 {[%emt 0:00:03]} 46. Rxd5 {[%emt 0:00:42]} b4 {[%emt 0:00:03]} 47. Rb5 {[%emt 0:02:10]} a5 {[%emt 0:00:51]} 48. Kxg4 {[%emt 0:00:23]} Rg2+ {[%emt 0:02:16]} 49. Kf4 {[%emt 0:00:54]} Rf2+ {[%emt 0:01:02]} 50. Ke4 {[%emt 0:00:27]} Rb2 {[%emt 0:00:09]} 51. Rg5+ {[%emt 0:02:35]} Kf6 {[%emt 0:00:44]} 52. Rf5+ {[%emt 0:01:09]} Ke7 {[%emt 0:00:45]} 53. Rxa5 {[%emt 0:00:34]} Rxb3 {[%emt 0:00:01]} 54. Kd5 {[%emt 0:00:37]} Rh3 {[%emt 0:00:09]} 55. Ra7+ {[%emt 0:00:24]} Ke8 {[%emt 0:06:46]} 56. Kd6 {[%emt 0:00:36]} Rxh4 {[%emt 0:00:37]} 57. Ra8+ {[%emt 0:00:13]} Kf7 {[%emt 0:00:00]} 58. d5 {[%emt 0:00:11]} b3 {[%emt 0:01:18]} 59. Rb8 {[%emt 0:00:48]} Rh3 {[%emt 0:00:27]} 60. Kd7 {[%emt 0:00:35]} Kf6 {[%emt 0:00:47]} 61. d6 {[%emt 0:00:34]} Ke5 {[%emt 0:00:16]} 62. Rb5+ {[%emt 0:00:39]} Kd4 {[%emt 0:00:21]} 63. Kc7 {[%emt 0:00:24]} Rh7+ {[%emt 0:00:13]} 64. d7 {[%emt 0:00:10]} Kc3 {[%emt 0:00:25]} 65. Kc8 {[%emt 0:00:16]} Rxd7 {[%emt 0:00:07]} 66. Kxd7 {[%emt 0:00:07]} b2 {[%emt 0:00:02]} 67. Rxb2 {[%emt 0:00:07]} Kxb2 {[%emt 0:00:01]} 1/2-1/2

[Event "WJCC U20 Girls 2019"]
[Site "New Delhi"]
[Date "2019.10.24"]
[Round "10.14"]
[White "Potapova, Margarita"]
[Black "Katkov, Michelle"]
[Result "0-1"]
[ECO "E15"]
[WhiteElo "2377"]
[BlackElo "2106"]
[Annotator "NA"]
[PlyCount "108"]
[EventDate "2019.10.15"]
[EventType "swiss"]
[EventCountry "IND"]
[SourceTitle "playchess.com"]
[Source "ChessBase"]
[SourceQuality "1"]
[TimeControl "40/5400+30:1800+30"]

1. d4 {[%emt 0:00:00]} Nf6 {[%emt 0:00:00]} 2. c4 {[%emt 0:00:00]} e6 {[%emt 0:00:00]} 3. Nf3 {[%emt 0:00:00]} b6 {[%emt 0:00:00]} 4. g3 {[%emt 0:00:06]} Bb4+ {[%emt 0:00:10]} 5. Bd2 {[%emt 0:00:28]} a5 {[%emt 0:00:05]} 6. Bg2 {[%emt 0:00:33]} O-O {[%emt 0:00:10]} 7. O-O {[%emt 0:00:10]} Ba6 {[%emt 0:00:04]} 8. Qc2 {[%emt 0:00:55]} c5 {[%emt 0:00:08]} 9. e4 {[%emt 0:19:04]} d5 {[%emt 0:02:38]} 10. Bg5 $14 {[%emt 0:15:10]} Bxc4 {[%emt 0:04:41]} 11. e5 {[%emt 0:15:44]} Bxf1 {[%emt 0:12:39]} 12. Bxf1 {[%emt 0:00:32]} h6 {[%emt 0:03:27]} 13. Bh4 {[%emt 0:08:02]} g5 {[%emt 0:07:00]} 14. Nxg5 {[%emt 0:01:47]} hxg5 {[%emt 0:01:18]} 15. Bxg5 {[%emt 0:00:05]} cxd4 {[%emt 0:00:10]} 16. exf6 {[%emt 0:01:44]} Nd7 {[%emt 0:04:33]} 17. Qd1 {[%emt 0:10:56]} Nxf6 {[%emt 0:04:22]} 18. Qxd4 {[%emt 0:00:18]} Be7 {[%emt 0:03:18]} 19. Bh6 {[%emt 0:02:08]} Re8 {[%emt 0:03:48]} 20. Bb5 {[%emt 0:07:19]} Kh7 {[%emt 0:05:43]} 21. Bxe8 {[%emt 0:04:45]} Nxe8 {[%emt 0:02:20]} 22. Bd2 {[%emt 0:02:16]} Bf6 {[%emt 0:03:29]} 23. Qd3+ {[%emt 0:00:03]} Kg8 {[%emt 0:00:22]} 24. Nc3 {[%emt 0:00:05]} Nd6 {[%emt 0:00:40]} 25. Re1 {[%emt 0:02:01]} Nc4 {[%emt 0:02:58]} 26. Bc1 {[%emt 0:00:24]} Rc8 {[%emt 0:01:58]} 27. Kg2 {[%emt 0:00:36]} Qc7 {[%emt 0:06:02]} 28. Qf3 {[%emt 0:00:11]} Bg7 {[%emt 0:01:34]} 29. Qg4 {[%emt 0:00:30]} Ne5 {[%emt 0:05:07]} 30. Qd1 {[%emt 0:01:09]} Qc4 {[%emt 0:01:45]} 31. Bg5 {[%emt 0:04:18]} Nd3 {[%emt 0:02:25]} 32. Re2 {[%emt 0:00:13]} b5 {[%emt 0:02:10]} 33. Rd2 {[%emt 0:03:59]} Nxb2 {[%emt 0:00:48]} 34. Rxb2 {[%emt 0:00:03]} Bxc3 {[%emt 0:02:32]} 35. Rc2 {[%emt 0:00:10]} Qe4+ {[%emt 0:00:22]} 36. f3 {[%emt 0:00:38]} Qg6 {[%emt 0:01:46]} 37. Bc1 {[%emt 0:00:25]} Rc4 {[%emt 0:01:25]} 38. Re2 {[%emt 0:01:20]} Qb1 {[%emt 0:04:08]} 39. Rc2 {[%emt 0:00:36]} Bg7 {[%emt 0:02:20]} 40. Rxc4 {[%emt 0:00:43]} bxc4 {[%emt 0:02:31]} 41. Qd2 {[%emt 0:01:13]} c3 {[%emt 0:01:49]} 42. Qg5 {[%emt 0:00:39]} Qxa2+ {[%emt 0:03:02]} 43. Kh3 {[%emt 0:01:39]} Qc4 {[%emt 0:03:34]} 44. Bf4 {[%emt 0:05:53]} Qf1+ {[%emt 0:04:00]} 45. Kh4 {[%emt 0:04:41]} Qxf3 {[%emt 0:01:01]} 46. Qe7 {[%emt 0:01:29]} Qe4 {[%emt 0:08:10]} 47. Qe8+ {[%emt 0:02:14]} Bf8 {[%emt 0:00:16]} 48. Kh3 {[%emt 0:00:13]} c2 {[%emt 0:01:48]} 49. Bh6 {[%emt 0:01:26]} Qb4 {[%emt 0:00:29]} 50. Qc8 {[%emt 0:00:30]} Qc5 {[%emt 0:01:11]} 51. Qxc5 {[%emt 0:00:17]} Bxc5 {[%emt 0:00:06]} 52. Bc1 {[%emt 0:00:04]} a4 {[%emt 0:00:30]} 53. Kg2 {[%emt 0:00:13]} a3 {[%emt 0:00:09]} 54. Kf3 {[%emt 0:00:05]} a2 {[%emt 0:00:05]} 0-1

[Event "WJCC U20 Girls 2019"]
[Site "New Delhi"]
[Date "2019.10.24"]
[Round "10.15"]
[White "Ghosh Samriddhaa"]
[Black "Yakubbaeva, Nilufar"]
[Result "0-1"]
[ECO "B92"]
[WhiteElo "1867"]
[BlackElo "2281"]
[Annotator "NA RC"]
[PlyCount "78"]
[EventDate "2019.10.15"]
[EventType "swiss"]
[EventCountry "IND"]
[SourceTitle "playchess.com"]
[Source "ChessBase"]
[SourceQuality "1"]
[TimeControl "40/5400+30:1800+30"]

1. e4 {[%emt 0:00:00]} c5 {[%emt 0:00:10]} 2. Nf3 {[%emt 0:00:00]} d6 {[%emt 0:00:24]} 3. d4 {[%emt 0:00:00]} cxd4 {[%emt 0:00:20]} 4. Nxd4 {[%emt 0:00:00]} Nf6 {[%emt 0:00:05]} 5. Nc3 {[%emt 0:00:02]} a6 {[%emt 0:00:06]} 6. Be2 {[%emt 0:00:13]} e5 {[%emt 0:01:05]} 7. Nb3 {[%emt 0:00:20]} Be7 {[%emt 0:05:56]} 8. O-O {[%emt 0:00:26]} Be6 {[%emt 0:01:06]} 9. Be3 {[%emt 0:00:49]} Nbd7 {[%emt 0:08:10]} 10. a4 {[%emt 0:10:00]} Rc8 {[%emt 0:03:00]} 11. Qd2 {[%emt 0:04:45]} O-O {[%emt 0:03:57]} 12. a5 {[%emt 0:01:17]} Ng4 {[%emt 0:08:01]} 13. Bxg4 {[%emt 0:07:19]} Bxg4 {[%emt 0:00:11]} 14. Nd5 {[%emt 0:02:43]} Be6 {[%emt 0:03:37]} 15. Rac1 {[%emt 0:15:37]} Nf6 {[%emt 0:06:25]} 16. Nxf6+ {[%emt 0:15:15]} Bxf6 {[%emt 0:02:18]} 17. Qb4 {[%emt 0:02:12]} Rc4 {[%emt 0:07:17]} 18. Qxb7 {[%emt 0:08:56]} Qc8 {[%emt 0:00:08]} 19. Qb6 {[%emt 0:03:17]} Rxe4 {[%emt 0:05:13]} 20. Qxd6 {[%emt 0:02:51]} Bh3 {[%emt 0:02:59]} 21. f3 {[%emt 0:22:23]} Rxe3 {[%emt 0:00:34]} 22. Qd2 {[%emt 0:00:13]} Bg5 {[%emt 0:00:48]} 23. gxh3 {[%emt 0:00:06]} Bf4 {[%emt 0:00:58]} 24. c3 {[%emt 0:02:30]} Qc4 {[%emt 0:08:43]} 25. Qd1 {[%emt 0:00:37]} Rd3 {[%emt 0:05:03]} 26. Qe2 {[%emt 0:00:24]} Bxc1 {[%emt 0:00:51]} 27. Nxc1 {[%emt 0:00:39]} Qc5+ {[%emt 0:00:04]} 28. Kh1 {[%emt 0:00:09]} Rd6 {[%emt 0:00:21]} 29. Nb3 {[%emt 0:00:36]} Qc6 {[%emt 0:01:48]} 30. Qxe5 {[%emt 0:00:23]} Rd5 {[%emt 0:02:21]} 31. Qe4 {[%emt 0:00:44]} Re8 {[%emt 0:02:05]} 32. Nd4 {[%emt 0:00:38]} Qd7 {[%emt 0:02:47]} 33. Qg4 {[%emt 0:00:17]} Qxg4 {[%emt 0:00:16]} 34. hxg4 {[%emt 0:00:04]} Rxa5 {[%emt 0:00:04]} 35. Rc1 {[%emt 0:00:44]} Ra2 {[%emt 0:00:41]} 36. b4 {[%emt 0:00:50]} f6 {[%emt 0:01:00]} 37. f4 {[%emt 0:00:38]} Re4 {[%emt 0:00:21]} 38. Rf1 {[%emt 0:00:20]} Ra3 {[%emt 0:00:16]} 39. Rf3 {[%emt 0:00:20]} Rxd4 {[%emt 0:00:10]} 0-1